bitfinex-derivatives/quotes_BNBF0:USTF0_20250315
["timestamp","ask_amount","ask_price","bid_price","bid_amount"]
[1742058280253,2.83725772,611.1,609.56,20.06510551]
[1742058281451,2.50997905,611.08,609.56,20.06510551]
[1742058283259,0.32727867,611.1,609.56,20.06510551]
[1742058284760,0.32727867,611.1,609.56,19.737]
[1742058285755,0.28530554,611.09,609.56,19.737]
[1742058285959,0.32729474,611.07,609.56,19.737]
[1742058287665,2.50997905,610.84,609.56,19.737]
[1742058287861,0.3274287,610.82,609.56,19.737]
[1742058288058,0.3274287,610.82,609.57,0.32810013]
[1742058288260,2.50997905,610.84,609.57,0.32810013]
[1742058289658,2.50997905,611.4,609.57,0.32810013]
[1742058289862,0.32712344,611.39,609.57,0.32810013]
[1742058290863,0.32712344,611.39,609.58,6.951]
[1742058291066,0.32712344,611.39,609.58,8.827]
[1742058291364,0.32712344,611.39,609.6,0.32808398]
[1742058291762,0.28518746,611.38,609.61,1.921]
[1742058291964,0.32713414,611.37,609.63,0.32806784]
[1742058292356,0.32713414,611.37,609.64,2.721]
[1742058292561,0.28519447,611.36,609.65,0.32805708]
[1742058292762,0.32715019,611.34,609.65,0.32805708]
[1742058293358,2.50997905,611.28,609.65,0.32805708]
[1742058293562,0.32718765,611.27,609.65,0.32805708]
[1742058300762,0.28519564,611.26,609.65,0.32805708]
[1742058300967,0.32719836,611.25,609.65,0.32805708]
[1742058306864,2.50997905,611.19,609.65,0.32805708]
[1742058308871,0.32719836,611.25,609.65,0.32805708]
[1742058308872,2.83717741,611.25,609.65,0.32805708]
[1742058309073,0.32720907,611.23,609.65,0.32805708]
[1742058309773,0.2852611,611.22,609.65,0.32805708]
[1742058309973,0.32722513,611.2,609.65,0.32805708]
[1742058310880,2.50997905,611.19,609.65,0.66305708]
[1742058311074,0.32724119,611.17,609.65,0.66305708]
[1742058311378,0.32724119,611.17,609.65,2.58405708]
[1742058312478,0.32724119,611.17,609.65,4.79105708]
[1742058312879,2.50997905,611.16,609.65,4.79105708]
[1742058313074,0.32725725,611.14,609.65,4.79105708]
[1742058313380,0.28526695,611.13,609.65,4.79105708]
[1742058313776,0.32727332,611.11,609.65,4.79105708]
[1742058313977,0.32727332,611.11,609.65,5.93205708]
[1742058314580,0.32727332,611.11,609.65,7.86605708]
[1742058316578,2.50997905,611.02,609.65,7.86605708]
[1742058316782,0.32732688,611.01,609.65,7.86605708]
[1742058321086,0.32732688,611.01,609.65,12.25705708]
[1742058323583,0.32732688,611.01,609.65,14.95005708]
[1742058327593,2.50997905,610.96,609.65,14.95005708]
[1742058327793,0.32735903,610.95,609.65,14.95005708]
[1742058330597,0.28531138,610.94,609.65,14.95005708]
[1742058330795,0.32736974,610.93,609.65,17.33805708]
[1742058331192,0.32736974,610.93,609.65,17.01]
[1742058331396,0.28534647,610.92,609.65,17.01]
[1742058331592,0.32738582,610.9,609.65,17.01]
[1742058338504,2.50997905,610.82,609.65,17.01]
[1742058340503,2.50997905,610.79,609.65,17.01]
[1742058340708,0.32745014,610.78,609.65,17.01]
[1742058341703,0.28539211,610.77,609.65,17.01]
[1742058341905,0.32746623,610.75,609.65,17.01]
[1742058342902,2.50997905,610.74,609.65,17.01]
[1742058343105,0.32747695,610.73,609.65,17.01]
[1742058343519,0.6128515,610.73,609.65,17.01]
[1742058346210,0.32747695,610.73,609.65,17.01]
[1742058351716,0.32747695,610.73,609.65,19.572]
[1742058353116,2.50997905,610.61,609.65,19.572]
[1742058354917,2.83752036,610.61,609.65,19.572]
[1742058355114,0.32754131,610.61,609.65,19.572]
[1742058369430,2.50997905,610.92,609.65,19.572]
[1742058370531,2.50997905,610.92,609.66,0.3280517]
[1742058371231,2.50997905,611.01,609.66,0.3280517]
[1742058373239,2.50997905,611.57,609.66,2.9510517]
[1742058373538,0.32703785,611.55,609.66,3.2860517]
[1742058373839,0.32703785,611.55,609.66,10.5230517]
[1742058374437,0.32703785,611.55,609.66,12.4290517]
[1742058374642,0.32703785,611.55,609.66,15.0960517]
[1742058374842,0.32703785,611.55,609.66,18.4750517]
[1742058375941,0.28511269,611.54,609.66,18.4750517]
[1742058376138,0.32705389,611.52,609.66,18.4750517]
[1742058376946,2.83703294,611.52,609.66,18.4750517]
[1742058378844,0.32705389,611.52,609.66,18.4750517]
[1742058382642,0.32705389,611.52,609.66,20.3900517]
[1742058391452,0.28503213,611.51,609.66,20.3900517]
[1742058391653,0.32706459,611.5,609.66,20.3900517]
[1742058405766,0.28506365,611.49,609.66,20.3900517]
[1742058405963,0.32707529,611.48,609.66,20.3900517]
[1742058408763,2.50997905,611.35,609.66,20.3900517]
[1742058410463,2.50997905,611.31,609.66,20.3900517]
[1742058412666,2.50997905,611.27,609.66,20.3900517]
[1742058415261,2.50997905,611.38,609.66,20.3900517]
[1742058416470,2.50997905,611.43,609.66,20.3900517]
[1742058418070,0.32707529,611.48,609.66,20.3900517]
[1742058430582,0.28509284,611.47,609.66,20.3900517]
[1742058430776,0.32709134,611.45,609.66,20.3900517]
[1742058433584,0.28515007,611.44,609.66,20.3900517]
[1742058433787,0.32710203,611.43,609.66,20.3900517]
[1742058434586,2.83708108,611.43,609.66,20.3900517]
[1742058436589,0.28514306,611.42,609.66,20.3900517]
[1742058436890,0.32711273,611.41,609.66,20.3900517]
[1742058440990,2.50997905,611.29,609.66,20.3900517]
[1742058442390,2.50997905,611.36,609.66,20.3900517]
[1742058442592,2.83711854,611.36,609.66,20.3900517]
[1742058443698,0.32713949,611.36,609.66,20.3900517]
[1742058468718,0.2851162,611.35,609.66,20.3900517]
[1742058468918,0.61226104,611.35,609.66,20.3900517]
[1742058469217,0.32714484,611.35,609.66,20.3900517]
[1742058471814,0.28513372,611.34,609.66,20.3900517]
[1742058472215,0.32714484,611.35,609.66,20.3900517]
[1742058474419,2.50997905,611.31,609.66,20.3900517]
[1742058476118,0.32714484,611.35,609.66,20.3900517]
[1742058477824,0.28512087,611.34,609.66,20.3900517]
[1742058478426,0.32714484,611.35,609.66,20.3900517]
[1742058480726,0.28513138,611.34,609.66,20.3900517]
[1742058480926,0.32715554,611.33,609.66,20.3900517]
[1742058483828,2.50997905,611.15,609.66,20.3900517]
[1742058486330,0.32715554,611.33,609.66,20.3900517]
[1742058495833,0.28509985,611.32,609.66,20.3900517]
[1742058496136,0.32716624,611.31,609.66,20.3900517]
[1742058498834,0.28522369,611.3,609.66,20.3900517]
[1742058499040,0.3271823,611.28,609.66,20.3900517]
[1742058499543,2.50997905,611.13,609.66,20.3900517]
[1742058499734,0.32726796,611.12,609.66,20.3900517]
[1742058511042,0.28518512,611.11,609.66,20.3900517]
[1742058511347,0.32726796,611.12,609.66,20.3900517]
[1742058514555,0.28520499,611.11,609.66,20.3900517]
[1742058514854,0.32727867,611.1,609.66,20.3900517]
[1742058519955,0.28517928,611.09,609.66,20.3900517]
[1742058520358,0.32727867,611.1,609.66,20.3900517]
[1742058525860,0.28520382,611.09,609.66,20.3900517]
[1742058526055,0.32728938,611.08,609.66,20.3900517]
[1742058530561,2.50997905,611.06,609.66,20.3900517]
[1742058531061,0.32730545,611.05,609.66,20.3900517]
[1742058531857,0.28530086,611.04,609.66,20.3900517]
[1742058532062,2.50997905,610.75,609.66,20.3900517]
[1742058534367,2.50997905,611.02,609.66,20.3900517]
[1742058534569,0.32732688,611.01,609.66,20.3900517]
[1742058537664,2.50997905,610.76,609.66,20.3900517]
[1742058540270,0.32732688,611.01,609.66,20.3900517]
[1742058553067,0.28522954,611.0,609.66,20.3900517]
[1742058553269,0.32733759,610.99,609.66,20.3900517]
[1742058556579,0.28528916,610.98,609.66,20.3900517]
[1742058556777,0.32734831,610.97,609.66,20.3900517]
[1742058557179,2.50997905,610.73,609.66,20.3900517]
[1742058559180,0.32734831,610.97,609.66,20.3900517]
[1742058561881,0.28525876,610.96,609.66,20.3900517]
[1742058562375,0.32734831,610.97,609.66,20.3900517]
[1742058562575,0.28527162,610.95,609.66,20.3900517]
[1742058562976,0.32734831,610.97,609.66,20.3900517]
[1742058565682,0.28524707,610.96,609.66,20.3900517]
[1742058567481,0.32734831,610.97,609.66,20.3900517]
[1742058569485,2.93040967,611.3,609.66,20.3900517]
[1742058569987,2.50997905,611.34,609.66,20.3900517]
[1742058570687,2.50997905,611.43,609.66,20.3900517]
[1742058570887,0.32710738,611.42,609.66,20.3900517]
[1742058576893,0.28511737,611.41,609.66,20.3900517]
[1742058577295,0.32711808,611.4,609.66,20.3900517]
[1742058586698,0.28511737,611.39,609.66,20.3900517]
[1742058589501,0.32711808,611.4,609.66,20.3900517]
[1742058616625,0.28510101,611.39,609.66,20.3900517]
[1742058616828,0.32712879,611.38,609.66,20.3900517]
[1742058618328,2.50997905,611.35,609.66,20.3900517]
[1742058618527,0.32715019,611.34,609.66,20.3900517]
[1742058619823,2.50997905,611.3,609.66,20.3900517]
[1742058620027,0.32717695,611.29,609.66,20.3900517]
[1742058621729,2.50997905,611.06,609.66,20.3900517]
[1742058623524,2.50997905,611.1,609.66,20.3900517]
[1742058624827,4.25145686,611.27,609.66,20.3900517]
[1742058625030,3.24003076,611.29,609.66,20.3900517]
[1742058625031,0.32719301,611.26,609.66,20.3900517]
[1742058628129,0.28516526,611.25,609.66,20.3900517]
[1742058628328,0.32720371,611.24,609.66,20.3900517]
[1742058628630,0.61239,611.24,609.66,20.3900517]
[1742058633631,0.32720371,611.24,609.66,20.3900517]
[1742058637741,2.83718276,611.24,609.66,20.3900517]
[1742058639044,0.32720371,611.24,609.66,20.3900517]
[1742058644845,2.50997905,611.09,609.66,20.3900517]
[1742058645143,0.32728938,611.08,609.66,20.3900517]
[1742058645938,0.28526695,611.07,609.66,20.3900517]
[1742058646339,2.50997905,611.05,609.66,20.3900517]
[1742058646843,0.32731081,611.04,609.66,20.3900517]
[1742058649748,0.28526461,611.03,609.66,20.3900517]
[1742058649947,0.32732152,611.02,609.66,20.3900517]
[1742058675784,0.28523187,611.01,609.66,20.3900517]
[1742058676383,0.32732152,611.02,609.66,20.3900517]
[1742058676578,0.28525409,611.0,609.66,20.3900517]
[1742058677883,0.32733759,610.99,609.66,20.3900517]
[1742058679281,2.50997905,610.84,609.66,20.3900517]
[1742058681284,0.32733759,610.99,609.66,20.3900517]
[1742058682687,0.28531021,610.98,609.66,20.3900517]
[1742058682887,0.32735367,610.96,609.66,20.3900517]
[1742058684388,0.32735367,610.96,609.66,20.062]
[1742058685583,0.28531957,610.95,609.66,20.062]
[1742058685786,0.32736438,610.94,609.66,20.062]
[1742058688686,0.28531606,610.93,609.66,20.062]
[1742058688885,0.3273751,610.92,609.66,20.062]
[1742058696097,0.3273751,610.92,609.67,0.32804632]
[1742058698696,0.3273751,610.92,609.67,2.02504632]
[1742058698897,0.3273751,610.92,609.67,5.99404632]
[1742058699098,0.3273751,610.92,609.67,8.08304632]
[1742058699692,0.3273751,610.92,609.67,8.41604632]
[1742058699890,0.3273751,610.92,609.67,10.54204632]
[1742058700095,0.3273751,610.92,609.67,15.74404632]
[1742058700292,0.3273751,610.92,609.67,17.47304632]
[1742058701395,2.50997905,611.42,609.67,17.47304632]
[1742058701597,0.32711273,611.41,609.67,17.47304632]
[1742058709804,0.28508233,611.4,609.67,17.47304632]
[1742058710002,0.32712344,611.39,609.67,17.47304632]
[1742058712603,0.28514073,611.38,609.67,17.47304632]
[1742058713008,0.32713414,611.37,609.67,17.47304632]
[1742058715606,0.28519915,611.36,609.67,17.47304632]
[1742058715908,0.32715019,611.34,609.67,17.47304632]
[1742058717615,2.50997905,611.15,609.67,17.47304632]
[1742058717910,0.32725725,611.14,609.67,17.47304632]
[1742058734527,2.50997905,611.65,609.67,17.47304632]
[1742058734727,0.32698973,611.64,609.67,17.47304632]
[1742058736125,0.28501229,611.63,609.67,17.47304632]
[1742058736328,0.32700042,611.62,609.67,17.47304632]
[1742058738827,0.28495744,611.61,609.67,17.47304632]
[1742058739135,0.32701111,611.6,609.67,17.47304632]
[1742058743036,2.50997905,611.87,609.68,0.30100162]
[1742058743238,2.50997905,611.87,609.78,0.32798714]
[1742058743438,2.50997905,611.87,609.79,0.30100162]
[1742058743639,2.00184974,611.93,609.89,0.32792798]
[1742058743836,4.22446122,611.93,609.9,0.30100162]
[1742058744040,5.42307877,611.94,610.0,0.32786885]
[1742058744241,5.42307877,611.94,610.01,0.30100162]
[1742058744435,6.21809247,611.93,610.03,0.32785272]
[1742058744638,5.42307877,611.94,610.04,0.30100162]
[1742058744639,1.99711376,611.92,610.04,0.30100162]
[1742058744835,1.99711376,611.93,610.06,0.3278366]
[1742058745034,2.50997905,611.94,610.07,0.30100162]
[1742058745238,2.50997905,611.94,610.09,0.32782048]
[1742058745437,2.50997905,611.94,610.1,0.30100162]
[1742058745637,2.50997905,611.94,610.12,0.32780436]
[1742058745840,2.50997905,611.94,610.13,0.30100162]
[1742058746140,2.50997905,611.94,610.15,0.32778824]
[1742058746538,0.01634068,611.97,610.16,0.30100162]
[1742058746836,0.01634068,611.97,610.18,0.32777213]
[1742058747042,0.01634068,611.97,610.19,0.30100162]
[1742058747342,0.01634068,611.97,610.21,0.32775601]
[1742058747637,0.01634068,611.97,610.22,0.30100162]
[1742058747941,0.01634068,611.97,610.24,0.3277399]
[1742058749333,0.01634068,611.97,610.25,0.30084786]
[1742058749534,0.01634068,611.97,610.27,0.32772379]
[1742058749739,0.01634068,611.97,610.28,0.30084786]
[1742058749941,0.01634068,611.97,610.3,0.32770768]
[1742058765140,0.01634068,611.97,610.3,2.00270768]
[1742058765545,0.34315408,611.97,610.3,2.00270768]
[1742058765745,0.32681874,611.96,610.3,2.00270768]
[1742058766247,0.61158381,611.96,610.3,2.00270768]
[1742058766448,0.32681874,611.96,610.3,2.00270768]
[1742058766648,0.32681874,611.96,610.3,6.43070768]
[1742058770150,0.32681874,611.96,610.3,10.93870768]
[1742058770653,0.32681874,611.96,610.3,13.32770768]
[1742058773348,0.32681874,611.96,610.3,14.46070768]
[1742058774651,0.32681874,611.96,610.3,14.79270768]
[1742058778155,0.2848315,611.95,610.3,14.79270768]
[1742058778356,0.32682942,611.94,610.3,14.79270768]
[1742058778656,0.61168423,611.94,610.3,14.79270768]
[1742058781558,0.32682942,611.94,610.3,14.79270768]
[1742058781860,0.28485714,611.93,610.3,14.79270768]
[1742058784453,0.32682942,611.94,610.3,14.79270768]
[1742058797771,0.32682942,611.94,610.3,16.73070768]
[1742058799277,0.61165159,611.94,610.3,16.73070768]
[1742058802580,0.32682942,611.94,610.3,16.73070768]
[1742058805779,0.01634068,611.97,610.3,16.73070768]
[1742058806987,0.01634068,611.97,610.3,18.71170768]
[1742058810390,0.01634068,611.97,610.31,0.30074665]
[1742058810589,0.01634068,611.97,610.33,0.32769157]
[1742058810991,0.01634068,611.97,610.34,0.30074205]
[1742058811192,0.01634068,611.97,610.36,0.32767547]
[1742058811595,0.01634068,611.97,610.37,0.30074205]
[1742058811793,0.01634068,611.97,610.39,0.32765936]
[1742058812392,0.01634068,611.97,610.4,0.30072704]
[1742058812586,0.01634068,611.97,610.42,0.32764326]
[1742058812792,0.01634068,611.97,610.43,0.30072704]
[1742058812989,0.01634068,611.97,610.45,0.32762716]
[1742058813192,0.01634068,611.97,610.46,0.30072704]
[1742058813394,0.01634068,611.97,610.48,0.32761106]
[1742058813688,0.01634068,611.97,610.49,0.30072704]
[1742058813894,0.01634068,611.97,610.51,0.32759496]
[1742058814090,0.01634068,611.97,610.52,0.30072704]
[1742058814292,0.01634068,611.97,610.52,3.01072704]
[1742058814492,0.01634068,611.97,610.54,0.32757886]
[1742058814688,0.01634068,611.97,610.55,0.30057207]
[1742058815589,0.01634068,611.97,610.57,0.32756276]
[1742058815788,0.01634068,611.97,610.58,0.30057207]
[1742058815995,0.01634068,611.97,610.6,0.32754667]
[1742058816294,0.01634068,611.97,610.61,0.30057207]
[1742058816595,0.01634068,611.97,610.63,0.32753058]
[1742058816795,0.01634068,611.97,610.64,0.30057207]
[1742058816998,0.01634068,611.97,610.66,0.32751449]
[1742058817598,0.01634068,611.97,610.67,0.3005986]
[1742058817996,0.01634068,611.97,610.66,0.32751449]
[1742058820800,0.01634068,611.97,610.67,0.30059481]
[1742058821003,0.01634068,611.97,610.69,0.3274984]
[1742058821301,0.01634068,611.97,610.7,0.30059481]
[1742058821498,0.01634068,611.97,610.72,0.32748231]
[1742058821695,0.01634068,611.97,610.73,0.30059481]
[1742058821896,0.01634068,611.97,610.75,0.32746623]
[1742058822100,0.01634068,611.97,610.76,0.30059481]
[1742058822901,0.01634068,611.97,610.78,0.32745014]
[1742058825700,0.01634068,611.97,610.79,0.30052313]
[1742058825902,0.01634068,611.97,610.81,0.32743406]
[1742058826098,0.01634068,611.97,610.82,0.30052313]
[1742058826298,0.01634068,611.97,610.84,0.32741798]
[1742058826904,0.01634068,611.97,610.85,0.30053297]
[1742058827108,0.01634068,611.97,610.87,0.3274019]
[1742058829708,0.01634068,611.97,610.88,0.30047359]
[1742058829909,0.01634068,611.97,610.9,0.32738582]
[1742058830103,0.01634068,611.97,610.91,0.30047359]
[1742058830307,0.01634068,611.97,610.93,0.32736974]
[1742058830508,0.01634068,611.97,610.94,0.30047359]
[1742058830704,0.01634068,611.97,610.96,0.32735367]
[1742058830909,0.01634068,611.97,610.97,0.30047359]
[1742058831105,0.01634068,611.97,610.99,0.32733759]
[1742058831310,0.01634068,611.97,611.0,0.30047359]
[1742058831608,0.01634068,611.97,610.99,0.32733759]
[1742058831609,0.01634068,611.97,611.02,0.32732152]
[1742058832305,0.01634068,611.97,611.02,2.46432152]
[1742058836611,0.01634068,611.97,611.02,4.12132152]
[1742058837516,0.01634068,611.97,611.03,0.30048426]
[1742058837714,0.01634068,611.97,611.05,0.32730545]
[1742058838914,0.01634068,611.97,611.06,0.30043035]
[1742058839211,0.01634068,611.97,611.08,0.32728938]
[1742058839411,0.01634068,611.97,611.09,0.30043035]
[1742058839614,0.01634068,611.97,611.11,0.32727332]
[1742058840010,0.01634068,611.97,611.12,0.30040837]
[1742058840210,0.01634068,611.97,611.14,0.32725725]
[1742058840412,0.01634068,611.97,611.15,0.30040837]
[1742058840612,0.01634068,611.97,611.17,0.32724119]
[1742058841217,0.01634068,611.97,611.18,0.30033157]
[1742058841418,0.01634068,611.97,611.19,0.32723048]
[1742058841621,0.01634068,611.97,611.2,0.30033157]
[1742058841817,0.01634068,611.97,611.21,0.32721977]
[1742058842018,0.01634068,611.97,611.21,0.62755233]
[1742058842210,0.01634068,611.97,611.22,0.30033256]
[1742058842415,0.01634068,611.97,611.23,0.32720907]
[1742058843922,0.01634068,611.97,611.24,0.30031909]
[1742058844120,0.01634068,611.97,611.25,0.32719836]
[1742058847924,0.01634068,611.97,611.26,0.30026914]
[1742058848125,0.01634068,611.97,611.27,0.32718765]
[1742058848322,0.01634068,611.97,611.28,0.30026914]
[1742058848723,0.01634068,611.97,611.29,0.32717695]
[1742058848925,0.01634068,611.97,611.3,0.30026914]
[1742058849123,0.01634068,611.97,611.31,0.32716624]
[1742058849825,0.01634068,611.97,611.32,0.30026223]
[1742058850023,0.01634068,611.97,611.33,0.32715554]
[1742058850219,0.01634068,611.97,611.34,0.30026223]
[1742058850725,0.01634068,611.97,611.35,0.32714484]
[1742058858632,0.01634068,611.97,611.36,2.308]
[1742058858933,0.01634068,611.97,611.37,0.32713414]
[1742058861634,0.01634068,611.97,611.38,2.256]
[1742058861935,0.01634068,611.97,611.39,0.32712344]
[1742058897052,0.01634068,611.97,611.4,0.30003946]
[1742058897252,0.01634068,611.97,611.39,0.32712344]
[1742058899057,0.01634068,611.97,611.4,0.30018901]
[1742058899251,0.01634068,611.97,611.41,0.32711273]
[1742058899455,0.01634068,611.97,611.42,0.30018901]
[1742058899654,0.01634068,611.97,611.43,0.32710203]
[1742058899854,0.01634068,611.97,611.44,0.30018901]
[1742058900054,0.01634068,611.97,611.45,0.32709134]
[1742058900259,0.01634068,611.97,611.46,0.30018901]
[1742058900453,0.01634068,611.97,611.47,0.32708064]
[1742058900756,0.01634068,611.97,611.48,0.30020633]
[1742058900959,0.01634068,611.97,611.49,0.62727629]
[1742058901157,0.01634068,611.97,611.5,0.32706459]
[1742058901358,0.01634068,611.97,611.51,0.30011696]
[1742058902461,0.01634068,611.97,611.52,0.32705389]
[1742058902659,0.01634068,611.97,611.53,0.30011696]
[1742058902860,0.01634068,611.97,611.54,0.3270432]
[1742058903059,0.01634068,611.97,611.55,0.30011696]
[1742058903262,0.01634068,611.97,611.56,0.3270325]
[1742058903456,0.01634068,611.97,611.57,0.30011696]
[1742058903655,0.01634068,611.97,611.58,0.32702181]
[1742058904060,0.01634068,611.97,611.59,0.30011536]
[1742058904258,0.01634068,611.97,611.58,0.32702181]
[1742058904858,0.01634068,611.97,611.59,0.30011227]
[1742058905060,0.01634068,611.97,611.6,0.32701111]
[1742058911966,0.01634068,611.97,611.61,0.30009712]
[1742058912166,0.01634068,611.97,611.62,0.32700042]
[1742058912465,0.01634068,611.97,611.63,0.30009712]
[1742058912765,0.01634068,611.97,611.64,0.32698973]
[1742058912966,0.01634068,611.97,611.65,0.30009712]
[1742058913268,0.01634068,611.97,611.66,0.32697904]
[1742058917970,0.01634068,611.97,611.67,0.3000675]
[1742058918673,0.01634068,611.97,611.68,0.32696834]
[1742058918872,0.01634068,611.97,611.69,0.3000675]
[1742058920773,0.01634068,611.97,611.7,0.32695765]
[1742058920972,0.01634068,611.97,611.71,0.3000675]
[1742058921177,0.01634068,611.97,611.72,0.32694696]
[1742058921376,0.01634068,611.97,611.73,0.3000675]
[1742058921975,0.01634068,611.97,611.74,0.32693628]
[1742058931681,0.01634068,611.97,611.75,0.30003184]
[1742058932077,0.01634068,611.97,611.76,0.32692559]
[1742058932281,0.01634068,611.97,611.77,0.30003184]
[1742058932483,0.01634068,611.97,611.78,0.3269149]
[1742058932683,0.01634068,611.97,611.79,0.30003184]
[1742058932887,0.01634068,611.97,611.8,0.32690421]
[1742058933182,0.01634068,611.97,611.81,0.30003184]
[1742058933382,0.01634068,611.97,611.82,0.32689353]
[1742058961317,0.00858385,611.97,611.82,0.32689353]
[1742058976333,0.00858385,611.97,611.82,0.31806437]
[1742059055111,0.00858385,611.97,611.83,0.30002978]
[1742059055310,0.00858385,611.97,611.84,0.32688284]
[1742059055512,0.00858385,611.97,611.85,0.30002978]
[1742059055718,0.00858385,611.97,611.86,0.32687216]
[1742059055912,0.00858385,611.97,611.87,0.30002978]
[1742059056111,0.00858385,611.97,611.88,0.32686147]
[1742059056315,0.00858385,611.97,611.89,0.30002978]
[1742059056615,0.00858385,611.97,611.9,0.32685079]
[1742059056811,0.00858385,611.97,611.91,0.30002978]
[1742059057010,0.00858385,611.97,611.92,0.3268401]
[1742059057217,0.00858385,611.97,611.93,0.30002978]
[1742059057415,0.00858385,611.97,611.94,0.32682942]
[1742059073629,0.00858385,611.97,611.95,0.29990099]
[1742059073825,0.00858385,611.97,611.96,0.32681874]
[1742059074026,2.50997905,614.1,611.96,0.62671973]
[1742059074425,2.50997905,614.1,611.97,0.29990099]
[1742059075026,2.50997905,614.1,612.07,0.32676001]
[1742059075331,2.50997905,614.1,612.08,0.29983043]
[1742059075527,2.50997905,614.0,612.18,0.32670129]
[1742059075931,2.50997905,614.0,612.19,0.29983043]
[1742059076433,2.50997905,614.0,612.21,0.32668528]
[1742059076633,2.50997905,614.0,612.22,0.29983043]
[1742059076830,2.50997905,614.0,612.24,0.32666928]
[1742059077225,2.50997905,614.36,612.25,0.29977746]
[1742059077433,0.32554732,614.35,612.38,0.32659459]
[1742059078132,0.28380015,614.34,612.38,0.32659459]
[1742059078327,0.32555792,614.33,612.38,0.32659459]
[1742059079433,0.32555792,614.33,612.39,4.856]
[1742059079835,0.32555792,614.33,612.41,0.32657859]
[1742059080939,0.32555792,614.33,612.41,0.65857859]
[1742059081335,0.32555792,614.33,612.42,0.29977241]
[1742059081530,0.32555792,614.33,612.44,0.3265626]
[1742059081930,0.28378973,614.32,612.45,0.29978561]
[1742059082237,0.32556852,614.31,612.47,0.3265466]
[1742059082828,2.50997905,614.21,612.47,0.3265466]
[1742059084438,0.32556852,614.31,612.47,0.3265466]
[1742059086939,0.32556852,614.31,612.48,1.817]
[1742059087140,0.32556852,614.31,612.5,0.32653061]
[1742059092539,0.32556852,614.31,612.51,1.904]
[1742059093240,0.32556852,614.31,612.53,0.32651461]
[1742059097251,0.32556852,614.31,612.54,0.29977898]
[1742059097548,0.32556852,614.31,612.56,0.32649862]
[1742059100256,0.32556852,614.31,612.56,1.96849862]
[1742059101551,0.32556852,614.31,612.56,4.08849862]
[1742059103153,0.32556852,614.31,612.56,4.42049862]
[1742059103947,0.32556852,614.31,612.56,5.89349862]
[1742059104653,0.32556852,614.31,612.56,7.01549862]
[1742059105850,0.32556852,614.31,612.56,8.95149862]
[1742059107357,0.32556852,614.31,612.56,11.18249862]
[1742059114067,0.32556852,614.31,612.57,0.29966866]
[1742059114262,0.32556852,614.31,612.56,11.18249862]
[1742059114663,0.32556852,614.31,612.57,0.29967004]
[1742059115061,2.50997905,614.56,612.56,11.18249862]
[1742059115268,2.50997905,614.56,612.58,0.32648796]
[1742059116067,2.89062074,614.86,612.58,0.32648796]
[1742059116068,0.32544137,614.55,612.58,0.32648796]
[1742059118469,2.83542042,614.55,612.58,0.32648796]
[1742059118664,2.83542042,614.55,612.59,1.611]
[1742059118867,2.83542042,614.55,612.61,0.32647198]
[1742059119569,2.83542042,614.55,612.62,1.121]
[1742059119768,2.50997905,614.36,612.63,0.32646132]
[1742059119970,0.32555262,614.34,612.63,0.32646132]
[1742059120665,0.32555262,614.34,612.64,1.423]
[1742059120872,0.28380941,614.33,612.65,0.32645066]
[1742059121072,0.32556852,614.31,612.65,0.32645066]
[1742059121670,2.50997905,613.93,612.65,0.32645066]
[1742059122375,2.83574908,613.93,612.65,0.32645066]
[1742059122575,0.32577534,613.92,612.65,0.32645066]
[1742059122769,0.32577534,613.92,612.65,2.70445066]
[1742059125575,0.32577534,613.92,612.65,4.30345066]
[1742059126571,0.32577534,613.92,612.65,6.18945066]
[1742059126977,0.32577534,613.92,612.65,8.20845066]
[1742059127678,0.32577534,613.92,612.65,9.95245066]
[1742059132079,0.32577534,613.92,612.65,11.39945066]
[1742059146089,0.32577534,613.92,612.65,12.51945066]
[1742059150687,0.32577534,613.92,612.65,14.76045066]
[1742059151191,0.32577534,613.92,612.65,16.79845066]
[1742059153590,2.50997905,614.21,612.65,16.79845066]
[1742059153987,4.22138249,614.35,612.65,16.79845066]
[1742059154191,6.5415255,614.34,612.65,16.79845066]
[1742059154389,0.32555262,614.34,612.65,16.79845066]
[1742059156193,0.28376891,614.33,612.65,16.79845066]
[1742059156394,2.50997905,614.15,612.65,16.79845066]
[1742059158396,2.50997905,614.21,612.65,16.79845066]
[1742059161198,0.32556322,614.32,612.65,16.79845066]
[1742059164900,2.50997905,614.31,612.65,16.79845066]
[1742059165095,0.32557912,614.29,612.65,16.79845066]
[1742059165899,0.28381867,614.28,612.65,16.79845066]
[1742059166100,0.32559502,614.26,612.65,16.79845066]
[1742059167001,2.50997905,614.14,612.65,16.79845066]
[1742059167202,0.32566394,614.13,612.65,16.79845066]
[1742059168300,2.50997905,614.09,612.65,16.79845066]
[1742059168500,0.32569046,614.08,612.65,16.79845066]
[1742059172705,2.50997905,614.04,612.65,16.79845066]
[1742059174205,2.50997905,614.04,612.65,14.76045066]
[1742059174404,0.32569046,614.08,612.65,14.76045066]
[1742059177208,0.32569046,614.08,612.65,16.46845066]
[1742059203524,2.50997905,614.5,612.65,16.46845066]
[1742059203725,0.32547315,614.49,612.65,16.46845066]
[1742059204226,0.28370413,614.48,612.65,16.46845066]
[1742059204528,0.32548375,614.47,612.65,16.46845066]